Workbook

Sheet Model
A1: Inputs | C1: Used | D1: New
B2: Capital cost | C2: =EXP([1]!RiskNormal(Used_conditional_estimate,Used_root_MSE_of_model)) -> 29407.35229 | D2: 60000
B3: O&M cost | C3: 8500 | D3: 4000
A5: Output
B6: Present value (with O&M) | C6: =C2+'O&M'!C10 -> 77105.96119 | D6: =D2+'O&M'!D10 -> 82446.40419
B7: Equivalent monthly cost | C7: =PMT(Borrowing_rate/12,Term*12,-Model!C6) -> 1241.786313 | D7: =PMT(Borrowing_rate/12,Term*12,-Model!D6) -> 1327.793788
B8: New car premium | C8: =D7-C7 -> 86.0074749

Sheet Inflation data
A1: Year | B1: All Items CPI | C1: InflationRate
A2: 1980 | B2: 44
A3: 1981 | B3: 49.5 | C3: =(B3-B2)/B2 -> 0.125
A4: 1982 | B4: 54.9 | C4: =(B4-B3)/B3 -> 0.1090909091
A5: 1983 | B5: 58.1 | C5: 0.05828779599
A6: 1984 | B6: 60.6 | C6: 0.0430292599
A7: 1985 | B7: 63 | C7: 0.0396039604
A8: 1986 | B8: 65.6 | C8: 0.04126984127
A9: 1987 | B9: 68.5 | C9: 0.04420731707
A10: 1988 | B10: 71.2 | C10: 0.03941605839
A11: 1989 | B11: 74.8 | C11: 0.05056179775
A12: 1990 | B12: 78.4 | C12: 0.04812834225
A13: 1991 | B13: 82.8 | C13: 0.05612244898
A14: 1992 | B14: 84 | C14: 0.01449275362
A15: 1993 | B15: 85.6 | C15: 0.01904761905
A16: 1994 | B16: 85.7 | C16: 0.001168224299
A17: 1995 | B17: 87.6 | C17: 0.02217036173
A18: 1996 | B18: 88.9 | C18: 0.01484018265
A19: 1997 | B19: 90.4 | C19: 0.01687289089
A20: 1998 | B20: 91.3 | C20: 0.009955752212
A21: 1999 | B21: 92.9 | C21: 0.01752464403
A22: 2000 | B22: 95.4 | C22: 0.02691065662
A23: 2001 | B23: 97.8 | C23: 0.0251572327
A24: 2002 | B24: 100 | C24: 0.02249488753
A25: 2003 | B25: 102.8 | C25: 0.028
A26: 2004 | B26: 104.7 | C26: 0.01848249027
A27: 2005 | B27: 107 | C27: 0.02196752627
A28: 2006 | B28: 109.1 | C28: 0.01962616822
A29: 2007 | B29: 111.5 | C29: 0.02199816682
A30: 2008 | B30: 114.1 | C30: 0.02331838565
A31: 2009 | B31: 114.4 | C31: 0.002629272568
A32: 2010 | B32: 116.5 | C32: 0.01835664336
A33: 2011 | B33: 119.9 | C33: 0.02918454936
A34: 2012 | B34: 121.7 | C34: 0.01501251043
A35: 2013 | B35: 122.8 | C35: 0.009038619556
A36: 2014 | B36: 125.2 | C36: 0.01954397394
A37: 2015 | B37: 126.6 | C37: 0.01118210863
A38: 2016 | B38: 128.4 | C38: 0.01421800948
A39: 2017 | B39: 130.4 | C39: 0.01557632399
A40: 2018 | B40: 133.4 | C40: 0.02300613497
A41: 2019 | B41: 136 | C41: 0.01949025487
A42: 2020 | B42: 137 | C42: 0.007352941176
A43: 2021 | B43: 141.6 | C43: 0.03357664234
A44: 2022 | B44: 151.2 | C44: 0.06779661017
A45: 2023 | B45: 157.1 | C45: 0.03902116402
A46: 2024 | B46: 160.9 | C46: 0.02418841502

Sheet Assumptions
A1: Assumption | B1: Value
A2: Borrowing rate | B2: =[1]!RiskNormal(0.05, 0.01) -> 0.05
A3: Inflation rate | B3: 0.02
A4: Term | B4: 6 | C4: years
A6: Real interest rate | B6: =(1+Borrowing_rate)/(1+Inflation_rate)-1 -> 0.02941176471

Sheet O&M
A1: End of Year | B1: Inflation rate | C1: O&M
C2: Used | D2: New
A3: 0 | C3: =Model!C3 -> 8500 | D3: =Model!D3 -> 4000
A4: 1 | B4: =CensorOutlier([1]!RiskLogNorm(Inflation_mean,Inflation_std)+ Inflation_shift, 0, 0.12) -> 0.02995426269 | C4: =C3*(1+$B4) -> 8754.611233 | D4: =D3*(1+$B4) -> 4119.817051
A5: 2 | B5: =CensorOutlier([1]!RiskLogNorm(Inflation_mean,Inflation_std)+ Inflation_shift, 0, 0.12) -> 0.02995426269 | C5: =C4*(1+$B5) -> 9016.849158 | D5: 4243.223133
A6: 3 | B6: =CensorOutlier([1]!RiskLogNorm(Inflation_mean,Inflation_std)+ Inflation_shift, 0, 0.12) -> 0.02995426269 | C6: 9286.942226 | D6: 4370.325753
A7: 4 | B7: =CensorOutlier([1]!RiskLogNorm(Inflation_mean,Inflation_std)+ Inflation_shift, 0, 0.12) -> 0.02995426269 | C7: 9565.125733 | D7: 4501.235639
A8: 5 | B8: =CensorOutlier([1]!RiskLogNorm(Inflation_mean,Inflation_std)+ Inflation_shift, 0, 0.12) -> 0.02995426269 | C8: 9851.642022 | D8: 4636.066834
A9: 6 | B9: =CensorOutlier([1]!RiskLogNorm(Inflation_mean,Inflation_std)+ Inflation_shift, 0, 0.12) -> 0.02995426269 | C9: 10146.74069 | D9: 4774.936798
A10: Present value | C10: =NPV(Borrowing_rate,C4:C9) -> 47698.60889 | D10: =NPV(Borrowing_rate,D4:D9) -> 22446.40419

Sheet Lognormal fit
A1: Parameters from Fitter | B1: [0.57305, -0.006, 0.03051]
A2: s | B2: 0.57305
A3: loc | B3: -0.006
A4: scale | B4: 0.03051
A6: For XLRisk | C6: Comment
A7: Inflation mean | B7: =LN(B4) -> -3.48970078 | C7: ln(scale)
A8: Inflation std | B8: =B2 -> 0.57305 | C8: s
A9: Inflation shift | B9: =B3 -> -0.006 | C9: loc

Sheet Regression fit
A1: Used conditional estimate | B1: 10.289
A2: Used root MSE of model | B2: 0.29933
A4: Estimate in $ | B4: =EXP(Used_conditional_estimate) -> 29407.35229

Sheet XLRisk
A1: Simulation Settings | D1: Simulation Inputs | G1: Simulation Outputs
A2: Seed | B2: 0
A3: Update Screen | B3: FALSE | D3: Range | E3: Formula | G3: Range | H3: Name
A4: Iterations | B4: 1000 | D4: Model!$C$2 | E4: EXP(RiskNormal(Used_conditional_estimate,Used_root_MSE_of_model)) | G4: Model!$C$7 | H4: Used_EMC
A5: Latin Hypercube | B5: TRUE | D5: Assumptions!$B$2 | E5: RiskNormal(0.05, 0.01) | G5: Model!$D$7 | H5: New_EMC
A6: Calculate data tables during simulation | B6: TRUE | D6: O&M'!$B$4 | E6: CensorOutlier(RiskLogNorm(Inflation_mean,Inflation_std)+ Inflation_shift, 0, 0.12) | G6: Model!$C$8 | H6: Premium
D7: O&M'!$B$5 | E7: CensorOutlier(RiskLogNorm(Inflation_mean,Inflation_std)+ Inflation_shift, 0, 0.12) | G7: =[1]!AddressWithSheet(Model!$C$2) -> Model!$C$2 | H7: Used car
D8: O&M'!$B$6 | E8: CensorOutlier(RiskLogNorm(Inflation_mean,Inflation_std)+ Inflation_shift, 0, 0.12)
D9: O&M'!$B$7 | E9: CensorOutlier(RiskLogNorm(Inflation_mean,Inflation_std)+ Inflation_shift, 0, 0.12)
A10: Macro to run before each iteration | D10: O&M'!$B$8 | E10: CensorOutlier(RiskLogNorm(Inflation_mean,Inflation_std)+ Inflation_shift, 0, 0.12)
A11: Macro to run after each iteration | D11: O&M'!$B$9 | E11: CensorOutlier(RiskLogNorm(Inflation_mean,Inflation_std)+ Inflation_shift, 0, 0.12)
A12: Macro to run after simulation

Sheet Risk Results 1
A1: Navigation | C1: Inputs | K1: Outputs | P1: Simulation Statistics | V1: Output Cumulative Distributions | AG1: Output Distributions | AR1: Risk Tornado Diagram
A2: Risk Outputs | C2: Model!$C$2 | D2: Borrowing_rate | E2: 'O&M'!$B$4 | F2: 'O&M'!$B$5 | G2: 'O&M'!$B$6 | H2: 'O&M'!$B$7 | I2: 'O&M'!$B$8 | J2: 'O&M'!$B$9 | K2: Model!$C$7 | L2: Model!$D$7 | M2: Model!$C$8 | N2: Model!$C$2 | Q2: Model!$C$7 | R2: Model!$D$7 | S2: Model!$C$8 | T2: Model!$C$2 | BC2: ="Correlations - Column "&$AR$5&" sorted" -> Correlations - Column 1 sorted
A3: Simulation Statistics | B3: Iterations | C3: EXP(RiskNormal(Used_conditional_estimate,Used_root_MSE_of_model)) | D3: RiskNormal(0.05, 0.01) | E3: CensorOutlier(RiskLogNorm(Inflation_mean,Inflation_std)+ Inflation_shift, 0, 0.12) | F3: CensorOutlier(RiskLogNorm(Inflation_mean,Inflation_std)+ Inflation_shift, 0, 0.12) | G3: CensorOutlier(RiskLogNorm(Inflation_mean,Inflation_std)+ Inflation_shift, 0, 0.12) | H3: CensorOutlier(RiskLogNorm(Inflation_mean,Inflation_std)+ Inflation_shift, 0, 0.12) | I3: CensorOutlier(RiskLogNorm(Inflation_mean,Inflation_std)+ Inflation_shift, 0, 0.12) | J3: CensorOutlier(RiskLogNorm(Inflation_mean,Inflation_std)+ Inflation_shift, 0, 0.12) | K3: Used_EMC | L3: New_EMC | M3: Premium | N3: Used car | Q3: Used_EMC | R3: New_EMC | S3: Premium | T3: Used car | AR3: Select Output: | AS3: Model!$C$7 | BD3: Model!$C$7 | BE3: Model!$D$7 | BF3: Model!$C$8 | BG3: Model!$C$2
A4: Risk Output Percentiles | B4: 1 | C4: 38033.26484 | D4: 0.04048106155 | E4: 0.02524716382 | F4: 0.06248841343 | G4: 0.01338595738 | H4: 0.01227175637 | I4: 0 | J4: 0.009930850272 | K4: 1359.03774 | L4: 1299.163787 | M4: -59.87395315 | N4: 38033.26484 | P4: Mean | Q4: =_xlfn.AGGREGATE(1,6,K$4:K$1003) -> 1263.126002 | R4: =_xlfn.AGGREGATE(1,6,L$4:L$1003) -> 1327.882495 | S4: =_xlfn.AGGREGATE(1,6,M$4:M$1003) -> 64.75649289 | T4: =_xlfn.AGGREGATE(1,6,N$4:N$1003) -> 30753.65971 | AR4: Name: | AS4: =HLOOKUP($AS$3,$BD$3:$BG$4,2,0) -> Used_EMC | BC4: Risk Inputs | BD4: Used_EMC | BE4: New_EMC | BF4: Premium | BG4: Used car
A5: Calculate Percent Rank | B5: 2 | C5: 36706.52831 | D5: 0.04138440375 | E5: 0.04529434416 | F5: 0.02205469609 | G5: 0.02413843563 | H5: 0.03965126813 | I5: 0.008523863142 | J5: 0.02656507872 | K5: 1349.004798 | L5: 1305.985665 | M5: -43.01913233 | N5: 36706.52831 | P5: Median | Q5: =_xlfn.AGGREGATE(12,6,K$4:K$1003) -> 1244.973841 | R5: =_xlfn.AGGREGATE(12,6,L$4:L$1003) -> 1327.836985 | S5: =_xlfn.AGGREGATE(12,6,M$4:M$1003) -> 83.9428648 | T5: =_xlfn.AGGREGATE(12,6,N$4:N$1003) -> 29410.94938 | AR5: =MATCH($AS$3,$BD$3:$BG$3,0) -> 1 | BC5: =[1]!SortedTable($P$73:$T$80,$AR$5+1,1,1) -> 'O&M'!$B$8 | BD5: 0.001468641551 | BE5: 0.08497631222 | BF5: 0.01451362997
A6: Correlations | B6: 3 | C6: 54744.74334 | D6: 0.07345571534 | E6: 0.04649021747 | F6: 0.01750384253 | G6: 0.06089693162 | H6: 0.07923606581 | I6: 0.02122607012 | J6: 0.04391211793 | K6: 1740.446209 | L6: 1408.451369 | M6: -331.9948405 | N6: 54744.74334 | P6: Mode | Q6: =_xlfn.AGGREGATE(13,6,K$4:K$1003) ->  | R6: =_xlfn.AGGREGATE(13,6,L$4:L$1003) ->  | S6: =_xlfn.AGGREGATE(13,6,M$4:M$1003) ->  | T6: =_xlfn.AGGREGATE(13,6,N$4:N$1003) ->  | AR6: ="Tornado Diagram for "&$AS$4&" ("&$AS$3&")" -> Tornado Diagram for Used_EMC (Model!$C$7) | BC6: 'O&M'!$B$7 | BD6: 0.02090963101 | BE6: 0.128150476 | BF6: 0.003102924544
A7: Output Cumulative Distributions | B7: 4 | C7: 34320.60275 | D7: 0.03906145684 | E7: 0.02728297862 | F7: 0.03960532277 | G7: 0.02033778591 | H7: 0.001569601908 | I7: 0.009173577882 | J7: 0.01092504678 | K7: 1288.72427 | L7: 1290.612579 | M7: 1.888308884 | N7: 34320.60275 | P7: Std. Deviation | Q7: =_xlfn.AGGREGATE(7,6,K$4:K$1003) -> 154.694436 | R7: =_xlfn.AGGREGATE(7,6,L$4:L$1003) -> 28.96838363 | S7: =_xlfn.AGGREGATE(7,6,M$4:M$1003) -> 153.9542995 | T7: =_xlfn.AGGREGATE(7,6,N$4:N$1003) -> 9424.688339 | AR7: =CELL("filename", A1) -> https://1sfu-my.sharepoint.com/personal/mjbrydon_sfu_ca/Documents/Tutorials/BasicAnalytics/MonteCarlo/XLRisk/source/[CarModel_4_regress.xlsm]Risk Results 1 | BC7: 'O&M'!$B$9 | BD7: -0.03273114253 | BE7: 0.05698194847 | BF7: 0.04361034801
A8: Output Distributions | B8: 5 | C8: 15914.32518 | D8: 0.04755811858 | E8: 0.04380945378 | F8: 0.009306940254 | G8: 0.02100663634 | H8: 0.0367060404 | I8: 0.02605621816 | J8: 0.02391227083 | K8: 1017.306943 | L8: 1318.482282 | M8: 301.175339 | N8: 15914.32518 | P8: Variance | Q8: =_xlfn.AGGREGATE(10,6,K$4:K$1003) -> 23930.36854 | R8: =_xlfn.AGGREGATE(10,6,L$4:L$1003) -> 839.1672502 | S8: =_xlfn.AGGREGATE(10,6,M$4:M$1003) -> 23701.92633 | T8: =_xlfn.AGGREGATE(10,6,N$4:N$1003) -> 88824750.29 | AR8: ="'"&MID($AR$7,FIND("]",$AR$7)+1,31)&"'!" -> 'Risk Results 1'! | BC8: Borrowing_rate | BD8: 0.04702475052 | BE8: 0.9107448588 | BF8: 0.1241169572
A9: Risk Tornado Diagram | B9: 6 | C9: 20194.4227 | D9: 0.0548468462 | E9: 0.03686710076 | F9: 0.04198997586 | G9: 0.01508341589 | H9: 0.03337548787 | I9: 0.03348460061 | J9: 0.08019083593 | K9: 1109.746399 | L9: 1346.881814 | M9: 237.1354151 | N9: 20194.4227 | P9: Kurtosis | Q9: =KURT(K$4:K$1003) -> 1.57225143 | R9: =KURT(L$4:L$1003) -> -0.09349783292 | S9: =KURT(M$4:M$1003) -> 1.574489848 | T9: =KURT(N$4:N$1003) -> 1.673006326 | AR9: =$AR$8&ADDRESS(5+COUNTBLANK(OFFSET($BC$5:$BC$12,0,$AR$5)),55)&":$BC$12" -> 'Risk Results 1'!$BC$5:$BC$12 | BC9: 'O&M'!$B$5 | BD9: 0.08123999094 | BE9: 0.2100674024 | BF9: -0.0421038029
B10: 7 | C10: 30449.95153 | D10: 0.04950223547 | E10: 0.01594198708 | F10: 0.007269735183 | G10: 0.008476316568 | H10: 0.01548418157 | I10: 0.01850766512 | J10: 0.01380702465 | K10: 1214.418422 | L10: 1305.959102 | M10: 91.54067957 | N10: 30449.95153 | P10: Skewness | Q10: =SKEW(K$4:K$1003) -> 0.9629178746 | R10: =SKEW(L$4:L$1003) -> 0.04428504942 | S10: =SKEW(M$4:M$1003) -> -0.9077763806 | T10: =SKEW(N$4:N$1003) -> 0.9518495481 | BC10: 'O&M'!$B$6 | BD10: 0.1156564925 | BE10: 0.1526606426 | BF10: -0.08748754579
B11: 8 | C11: 40607.19488 | D11: 0.05673828685 | E11: 0.01271112975 | F11: 0.01420941883 | G11: 0.02752393213 | H11: 0.01604826578 | I11: 0.03891056876 | J11: 0.04296638863 | K11: 1408.128006 | L11: 1334.047918 | M11: -74.0800876 | N11: 40607.19488 | P11: Minimum | Q11: =_xlfn.AGGREGATE(5,6,K$4:K$1003) -> 945.4639968 | R11: =_xlfn.AGGREGATE(5,6,L$4:L$1003) -> 1236.857513 | S11: =_xlfn.AGGREGATE(5,6,M$4:M$1003) -> -761.7900175 | T11: =_xlfn.AGGREGATE(5,6,N$4:N$1003) -> 10342.31685 | BC11: 'O&M'!$B$4 | BD11: 0.1451960875 | BE11: 0.2814441455 | BF11: -0.09293696206
B12: 9 | C12: 17527.45488 | D12: 0.04869289849 | E12: 0.035385799 | F12: 0.02254974369 | G12: 0.007646819806 | H12: 0.03690725599 | I12: 0.02157577971 | J12: 0.02994228568 | K12: 1038.88223 | L12: 1319.210645 | M12: 280.3284149 | N12: 17527.45488 | P12: Maximum | Q12: =_xlfn.AGGREGATE(4,6,K$4:K$1003) -> 2042.682453 | R12: =_xlfn.AGGREGATE(4,6,L$4:L$1003) -> 1425.164698 | S12: =_xlfn.AGGREGATE(4,6,M$4:M$1003) -> 417.8536959 | T12: =_xlfn.AGGREGATE(4,6,N$4:N$1003) -> 83697.31021 | BC12: Model!$C$2 | BD12: 0.9833356007 | BF12: -0.9908927022 | BG12: 1
B13: 10 | C13: 46469.88563 | D13: 0.03897045141 | E13: 0.006145504619 | F13: 0.03473440332 | G13: 0.04206415317 | H13: 0.01767354198 | I13: 0.01378624001 | J13: 0.007602902523 | K13: 1476.460597 | L13: 1289.597181 | M13: -186.8634163 | N13: 46469.88563 | P13: Range | Q13: =Q12-Q11 -> 1097.218456 | R13: =R12-R11 -> 188.3071851 | S13: =S12-S11 -> 1179.643713 | T13: =T12-T11 -> 73354.99336
B14: 11 | C14: 29425.81511 | D14: 0.05911064476 | E14: 0.01243353547 | F14: 0.03045086548 | G14: 0.02127787243 | H14: 0.06024069099 | I14: 0.02691669842 | J14: 0.01245856254 | K14: 1242.857593 | L14: 1347.819261 | M14: 104.9616672 | N14: 29425.81511 | P14: Count | Q14: =COUNT(K$4:K$1003) -> 1000 | R14: =COUNT(L$4:L$1003) -> 1000 | S14: =COUNT(M$4:M$1003) -> 1000 | T14: =COUNT(N$4:N$1003) -> 1000
B15: 12 | C15: 32859.83823 | D15: 0.05511628972 | E15: 0.01855139509 | F15: 0.00582270717 | G15: 0.02589340204 | H15: 0.004073359112 | I15: 0.01373518415 | J15: 0.06991084338 | K15: 1270.451288 | L15: 1325.734887 | M15: 55.28359936 | N15: 32859.83823 | P15: Error Count | Q15: =COUNT(IF(ISERROR(K$4:K$1003), 1, "")) -> 0 | R15: =COUNT(IF(ISERROR(L$4:L$1003), 1, "")) -> 0 | S15: =COUNT(IF(ISERROR(M$4:M$1003), 1, "")) -> 0 | T15: =COUNT(IF(ISERROR(N$4:N$1003), 1, "")) -> 0
B16: 13 | C16: 30376.70815 | D16: 0.04457373438 | E16: 0.05550026846 | F16: 0.12 | G16: 0.03904010886 | H16: 0.04390608339 | I16: 0.01122047336 | J16: 0.04634739054 | K16: 1335.401194 | L16: 1353.052498 | M16: 17.6513042 | N16: 30376.70815 | P16: Std. Error | Q16: =Q7/SQRT(Q14) -> 4.891867592 | R16: =R7/SQRT(R14) -> 0.9160607241 | S16: =S7/SQRT(S14) -> 4.86846242 | T16: =T7/SQRT(T14) -> 298.0348139
B17: 14 | C17: 40226.76424 | D17: 0.06340976185 | E17: 0.01364711992 | F17: 0.05820334848 | G17: 0.09400745789 | H17: 0.04268834157 | I17: 0.01597958228 | J17: 0.02961822316 | K17: 1474.503016 | L17: 1381.158166 | M17: -93.34485004 | N17: 40226.76424 | P17: Confidence Level (95%) | Q17: =_xlfn.CONFIDENCE.T(5%,Q7,Q14) -> 9.599514599 | R17: =_xlfn.CONFIDENCE.T(5%,R7,R14) -> 1.79762394 | S17: =_xlfn.CONFIDENCE.T(5%,S7,S14) -> 9.553585658 | T17: =_xlfn.CONFIDENCE.T(5%,T7,T14) -> 584.8460722
B18: 15 | C18: 34990.37365 | D18: 0.06179911255 | E18: 0.02943111271 | F18: 0.08953677934 | G18: 0.02237044227 | H18: 0.06797824681 | I18: 0.09149709408 | J18: 0.0003083264383 | K18: 1405.410368 | L18: 1386.55564 | M18: -18.85472785 | N18: 34990.37365
B19: 16 | C19: 27432.0175 | D19: 0.04599008826 | E19: 0.01789822366 | F19: 0.02665582432 | G19: 0.01365617824 | H19: 0.02685161271 | I19: 0.04446757442 | J19: 0.01083078194 | K19: 1187.288601 | L19: 1308.390495 | M19: 121.1018934 | N19: 27432.0175 | P19: Percentiles
B20: 17 | C20: 42065.59322 | D20: 0.04556758629 | E20: 0.003885952657 | F20: 0.02297043129 | G20: 0.005987820287 | H20: 0.01478668143 | I20: 0.04278141799 | J20: 0.008267178202 | K20: 1398.544032 | L20: 1297.394294 | M20: -101.1497379 | N20: 42065.59322 | Q20: Model!$C$7 | R20: Model!$D$7 | S20: Model!$C$8 | T20: Model!$C$2
B21: 18 | C21: 40558.84767 | D21: 0.05504528534 | E21: 0.02555617049 | F21: 0.01032150462 | G21: 0.04707962379 | H21: 0.01783061305 | I21: 0.02541434302 | J21: 0.03803202597 | K21: 1417.789724 | L21: 1335.721743 | M21: -82.06798108 | N21: 40558.84767 | Q21: Used_EMC | R21: New_EMC | S21: Premium | T21: Used car
B22: 19 | C22: 51943.39705 | D22: 0.04021355735 | E22: 0.01196807779 | F22: 0.036165379 | G22: 0.02841879858 | H22: 0.0629035238 | I22: 0.02063586469 | J22: 0.03076771391 | K22: 1583.801667 | L22: 1301.94536 | M22: -281.8563066 | N22: 51943.39705 | P22: 0 | Q22: =_xlfn.AGGREGATE(16,6,K$4:K$1003,$P22) -> 945.4639968 | R22: =_xlfn.AGGREGATE(16,6,L$4:L$1003,$P22) -> 1236.857513 | S22: =_xlfn.AGGREGATE(16,6,M$4:M$1003,$P22) -> -761.7900175 | T22: =_xlfn.AGGREGATE(16,6,N$4:N$1003,$P22) -> 10342.31685
B23: 20 | C23: 25274.10075 | D23: 0.05389308494 | E23: 0.01516212574 | F23: 0.04358795548 | G23: 0.02218573859 | H23: 0.0280206961 | I23: 0.03527764034 | J23: 0.02996904449 | K23: 1172.645392 | L23: 1335.299074 | M23: 162.6536824 | N23: 25274.10075 | P23: 0.025 | Q23: =_xlfn.AGGREGATE(16,6,K$4:K$1003,$P23) -> 1031.539585 | R23: 1274.380066 | S23: -291.7489594 | T23: 16381.62947
B24: 21 | C24: 30573.28718 | D24: 0.05541050511 | E24: 0.003023608269 | F24: 0.07096134541 | G24: 0.01194420873 | H24: 0.02555694682 | I24: 0.009993207099 | J24: 0.01120016695 | K24: 1253.8732 | L24: 1336.147533 | M24: 82.274333 | N24: 30573.28718 | P24: 0.05 | Q24: 1055.39169 | R24: 1280.55362 | S24: -216.8796683 | T24: 18015.12606
B25: 22 | C25: 29555.00035 | D25: 0.03585321629 | E25: 0.02870292889 | F25: 0.02115831462 | G25: 0.03388206244 | H25: 0.03939286584 | I25: 0.01833075324 | J25: 0.02421632658 | K25: 1224.994316 | L25: 1288.90604 | M25: 63.91172421 | N25: 29555.00035 | P25: 0.075 | Q25: 1074.596482 | R25: 1285.12202 | S25: -167.5631481 | T25: 19115.77589
B26: 23 | C26: 24888.25756 | D26: 0.04277534436 | E26: 0.04149224394 | F26: 0.01160763019 | G26: 0.02951886919 | H26: 0.02110543096 | I26: 0.02431270817 | J26: 0.02363868368 | K26: 1154.595211 | L26: 1304.933153 | M26: 150.3379411 | N26: 24888.25756 | P26: 0.1 | Q26: 1088.319977 | R26: 1288.05922 | S26: -143.7576046 | T26: 20043.27812
B27: 24 | C27: 32436.21281 | D27: 0.05218420221 | E27: 0.12 | F27: 0.01589395007 | G27: 0.01441370881 | H27: 0.02950524421 | I27: 0.02277195919 | J27: 0.00802708831 | K27: 1338.119534 | L27: 1354.713189 | M27: 16.59365543 | N27: 32436.21281 | P27: 0.125 | Q27: 1103.019985 | R27: 1294.226429 | S27: -114.0325805 | T27: 20849.01785
B28: 25 | C28: 22489.71264 | D28: 0.05280639784 | E28: 0.005296781601 | F28: 0.01408751335 | G28: 0.02424813732 | H28: 0.01929995275 | I28: 0.04968146851 | J28: 0.009515576702 | K28: 1100.367856 | L28: 1320.120158 | M28: 219.7523019 | N28: 22489.71264 | P28: 0.15 | Q28: 1113.008289 | R28: 1297.743138 | S28: -84.08436168 | T28: 21574.22777
B29: 26 | C29: 26847.50259 | D29: 0.0677209509 | E29: 0.02131095959 | F29: 0.005103258679 | G29: 0.02229500455 | H29: 0.002864617034 | I29: 0.03329411427 | J29: 0.05058699279 | K29: 1186.766461 | L29: 1360.845982 | M29: 174.0795213 | N29: 26847.50259 | P29: 0.175 | Q29: 1123.592547 | R29: 1300.793489 | S29: -63.31305137 | T29: 22239.3591
B30: 27 | C30: 26022.01334 | D30: 0.05828758999 | E30: 0.03086037015 | F30: 0.01852840875 | G30: 0.0204680376 | H30: 0.02178795423 | I30: 0.005580414772 | J30: 0.01843632362 | K30: 1174.348232 | L30: 1340.207469 | M30: 165.8592375 | N30: 26022.01334 | P30: 0.2 | Q30: 1135.637585 | R30: 1303.270398 | S30: -40.70463717 | T30: 22873.96606
B31: 28 | C31: 28939.47409 | D31: 0.06182799507 | E31: 0.03828650966 | F31: 0.00937639741 | G31: 0.02719551634 | H31: 0.07083264597 | I31: 0.007113319014 | J31: 0.01711201177 | K31: 1246.405318 | L31: 1359.226372 | M31: 112.8210543 | N31: 28939.47409 | P31: 0.225 | Q31: 1141.257608 | R31: 1306.412411 | S31: -30.10705975 | T31: 23464.41964
B32: 29 | C32: 44588.0174 | D32: 0.04850548303 | E32: 0.01864368844 | F32: 0.02579218547 | G32: 0.03288804571 | H32: 0.01205185129 | I32: 0.12 | J32: 0.008467033835 | K32: 1485.930592 | L32: 1324.932826 | M32: -160.9977658 | N32: 44588.0174 | P32: 0.25 | Q32: 1151.18044 | R32: 1308.35949 | S32: -20.23041281 | T32: 24032.57816
B33: 30 | C33: 13668.50675 | D33: 0.04798811998 | E33: 0.01438930479 | F33: 0.01323245248 | G33: 0.04099527475 | H33: 0.04348019938 | I33: 0.02382759913 | J33: 0.02629768488 | K33: 974.0446815 | L33: 1316.088962 | M33: 342.0442808 | N33: 13668.50675 | P33: 0.275 | Q33: 1161.003945 | R33: 1310.576234 | S33: -9.294378644 | T33: 24589.84269
B34: 31 | C34: 35614.19638 | D34: 0.05334761113 | E34: 0.03962378386 | F34: 0.04957354724 | G34: 0.04887806791 | H34: 0.02618101954 | I34: 0.05646586255 | J34: 0.01601913929 | K34: 1378.471459 | L34: 1351.810152 | M34: -26.6613068 | N34: 35614.19638 | P34: 0.3 | Q34: 1170.038578 | R34: 1312.854327 | S34: 2.968238493 | T34: 25138.73207
B35: 32 | C35: 28594.29515 | D35: 0.0564621894 | E35: 0.03001091243 | F35: 0.003397916771 | G35: 0.02779962399 | H35: 0.07374012495 | I35: 0.01345958734 | J35: 0.0560481541 | K35: 1232.467511 | L35: 1343.601855 | M35: 111.1343444 | N35: 28594.29515 | P35: 0.325 | Q35: 1175.500652 | R35: 1314.382549 | S35: 16.01753849 | T35: 25679.70788
B36: 33 | C36: 21527.55274 | D36: 0.03917955619 | E36: 0.02781148067 | F36: 0.01028899637 | G36: 0.02040028484 | H36: 0.002345804872 | I36: 0.1119836791 | J36: 0.05847069915 | K36: 1101.838533 | L36: 1296.865095 | M36: 195.0265617 | N36: 21527.55274 | P36: 0.35 | Q36: 1185.742279 | R36: 1316.113339 | S36: 25.33692901 | T36: 26209.48333
B37: 34 | C37: 39834.76553 | D37: 0.06792908239 | E37: 0.03529398837 | F37: 0.01899216571 | G37: 0.014278467 | H37: 0.02148243213 | I37: 0.0162146768 | J37: 0.005044634486 | K37: 1419.402371 | L37: 1367.202424 | M37: -52.19994713 | N37: 39834.76553 | P37: 0.375 | Q37: 1196.551277 | R37: 1318.002183 | S37: 38.64274315 | T37: 26732.98028
B38: 35 | C38: 25600.27259 | D38: 0.05324580404 | E38: 0.01816722781 | F38: 0.02495150082 | G38: 0.0346956148 | H38: 0.03522206078 | I38: 0.02991861268 | J38: 0.05427126148 | K38: 1178.501844 | L38: 1334.106397 | M38: 155.6045527 | N38: 25600.27259 | P38: 0.4 | Q38: 1206.279763 | R38: 1319.686875 | S38: 50.06015364 | T38: 27255.02214
B39: 36 | C39: 25234.60941 | D39: 0.05832700008 | E39: 0.02829600521 | F39: 0.002309006053 | G39: 0.03193783072 | H39: 0.03245874562 | I39: 0.02935038517 | J39: 0.0089102366 | K39: 1163.109937 | L39: 1341.119186 | M39: 178.0092489 | N39: 25234.60941 | P39: 0.425 | Q39: 1215.263949 | R39: 1321.921587 | S39: 57.78280632 | T39: 27789.82876
B40: 37 | C40: 27887.80752 | D40: 0.02377621511 | E40: 0.01294556452 | F40: 0.04263661355 | G40: 0.0409054896 | H40: 0.01122508952 | I40: 0.03312200556 | J40: 0.01558137005 | K40: 1185.343658 | L40: 1257.055555 | M40: 71.71189784 | N40: 27887.80752 | P40: 0.45 | Q40: 1225.205588 | R40: 1323.83077 | S40: 66.53622872 | T40: 28318.5266
B41: 38 | C41: 39189.41553 | D41: 0.06294414785 | E41: 0.1031661983 | F41: 0.02978089046 | G41: 0.04848444682 | H41: 0.01213682411 | I41: 0.02332976113 | J41: 0.01188802382 | K41: 1472.341426 | L41: 1387.391623 | M41: -84.94980342 | N41: 39189.41553 | P41: 0.475 | Q41: 1233.871858 | R41: 1325.842464 | S41: 75.80819038 | T41: 28866.43618
B42: 39 | C42: 22829.34304 | D42: 0.06373584694 | E42: 0.03566883782 | F42: 0.02088385705 | G42: 0.0236549575 | H42: 0.04106744116 | I42: 0.01732379677 | J42: 0.02042434662 | K42: 1142.120397 | L42: 1362.509915 | M42: 220.389518 | N42: 22829.34304 | P42: 0.5 | Q42: 1244.973841 | R42: 1327.836985 | S42: 83.9428648 | T42: 29410.94938
B43: 40 | C43: 21079.67179 | D43: 0.04005793803 | E43: 0.01256075227 | F43: 0.0109883925 | G43: 0.08043067864 | H43: 0.03159904153 | I43: 0.04663413538 | J43: 0.02603222388 | K43: 1104.928871 | L43: 1303.611924 | M43: 198.6830524 | N43: 21079.67179 | P43: 0.525 | Q43: 1253.443493 | R43: 1329.589374 | S43: 92.44498038 | T43: 29965.5267
B44: 41 | C44: 28630.46732 | D44: 0.0425014986 | E44: 0.01336172159 | F44: 0.05743249749 | G44: 0.027964982 | H44: 0.06219184789 | I44: 0.02056219081 | J44: 0.005979239377 | K44: 1231.665588 | L44: 1312.843223 | M44: 81.17763498 | N44: 28630.46732 | P44: 0.55 | Q44: 1263.680835 | R44: 1331.940602 | S44: 100.0016473 | T44: 30532.878
B45: 42 | C45: 33971.73272 | D45: 0.06551621744 | E45: 0.02167693854 | F45: 0.01634450355 | G45: 0.04167437837 | H45: 0.0106942786 | I45: 0.05226034118 | J45: 0.03299171088 | K45: 1325.334076 | L45: 1364.629381 | M45: 39.29530529 | N45: 33971.73272 | P45: 0.575 | Q45: 1271.3376 | R45: 1333.58265 | S45: 109.9938167 | T45: 31122.55345
B46: 43 | C46: 43192.37608 | D46: 0.04813954242 | E46: 0.01608406043 | F46: 0.01747198001 | G46: 0.05639208181 | H46: 0.01680043954 | I46: 0.02394292831 | J46: 0.00863687332 | K46: 1446.605616 | L46: 1316.287311 | M46: -130.3183054 | N46: 43192.37608 | P46: 0.6 | Q46: 1278.556048 | R46: 1335.77581 | S46: 119.9200306 | T46: 31718.67421
B47: 44 | C47: 24071.79427 | D47: 0.06112225651 | E47: 0.03030070767 | F47: 0.02365118066 | G47: 0.004353608289 | H47: 0.02546520909 | I47: 0.002411494529 | J47: 0.02571810475 | K47: 1141.109888 | L47: 1346.211022 | M47: 205.1011346 | N47: 24071.79427 | P47: 0.625 | Q47: 1287.677685 | R47: 1337.701478 | S47: 131.0641187 | T47: 32343.87261
B48: 45 | C48: 41668.80465 | D48: 0.05877277463 | E48: 0.02633960667 | F48: 0.07586178155 | G48: 0.008974597584 | H48: 0.01809086872 | I48: 0.05560819379 | J48: 0.02013781178 | K48: 1469.037122 | L48: 1358.372205 | M48: -110.6649175 | N48: 41668.80465 | P48: 0.65 | Q48: 1295.620451 | R48: 1340.097995 | S48: 140.0715213 | T48: 33006.8792
B49: 46 | C49: 48829.51322 | D49: 0.06354724939 | E49: 0.009606017858 | F49: 0.03066328573 | G49: 0.007106892755 | H49: 0.1164230623 | I49: 0.03006858299 | J49: 0.0208197683 | K49: 1584.491526 | L49: 1365.412761 | M49: -219.0787651 | N49: 48829.51322 | P49: 0.675 | Q49: 1310.212087 | R49: 1341.936924 | S49: 146.881372 | T49: 33689.67948
B50: 47 | C50: 33835.69846 | D50: 0.0244095604 | E50: 0.02264475573 | F50: 0.02836196 | G50: 0.03108679584 | H50: 0.00766542202 | I50: 0.03191460789 | J50: 0.07315169511 | K50: 1273.915244 | L50: 1258.219191 | M50: -15.69605316 | N50: 33835.69846 | P50: 0.7 | Q50: 1320.891385 | R50: 1343.458363 | S50: 153.3231244 | T50: 34389.97337
B51: 48 | C51: 20082.2506 | D51: 0.05404924021 | E51: 0.03792721508 | F51: 0.003628756079 | G51: 0.0631487722 | H51: 0.026535544 | I51: 0.02971797444 | J51: 0.04401405108 | K51: 1099.998743 | L51: 1341.271814 | M51: 241.2730708 | N51: 20082.2506 | P51: 0.725 | Q51: 1338.385505 | R51: 1345.475734 | S51: 162.2071615 | T51: 35159.67149
B52: 49 | C52: 30179.4895 | D52: 0.05421608055 | E52: 0.06834891153 | F52: 0.02353040549 | G52: 0.1158835098 | H52: 0.005238106446 | I52: 0.01480088539 | J52: 0.04563157959 | K52: 1314.452873 | L52: 1365.127869 | M52: 50.67499615 | N52: 30179.4895 | P52: 0.75 | Q52: 1348.715367 | R52: 1347.820706 | S52: 173.469113 | T52: 35978.70378
B53: 50 | C53: 23872.4034 | D53: 0.05110487622 | E53: 0.02771671 | F53: 0.01502201865 | G53: 0.04454336588 | H53: 0.01353223677 | I53: 0.02610177231 | J53: 0.01529916701 | K53: 1141.176589 | L53: 1324.89799 | M53: 183.7214009 | N53: 23872.4034 | P53: 0.775 | Q53: 1359.126233 | R53: 1349.222043 | S53: 183.7494195 | T53: 36863.76927
B54: 51 | C54: 37416.90742 | D54: 0.0549542116 | E54: 0.01740773469 | F54: 0.01253792965 | G54: 0.02196153996 | H54: 0.006186441993 | I54: 0.01238911259 | J54: 0.03432701894 | K54: 1342.62738 | L54: 1324.330241 | M54: -18.2971391 | N54: 37416.90742 | P54: 0.8 | Q54: 1373.375256 | R54: 1351.133498 | S54: 193.4422349 | T54: 37829.83127
B55: 52 | C55: 20961.19603 | D55: 0.05713485486 | E55: 0.02473342687 | F55: 0.03572412284 | G55: 0.01792250171 | H55: 0.008898103973 | I55: 0.01932047559 | J55: 0.04768826228 | K55: 1096.53108 | L55: 1340.147453 | M55: 243.616373 | N55: 20961.19603 | P55: 0.825 | Q55: 1394.765143 | R55: 1353.967822 | S55: 202.8888693 | T55: 38896.69141
B56: 53 | C56: 24551.67011 | D56: 0.04985008789 | E56: 0.03569941708 | F56: 0.09940451479 | G56: 0.005631423131 | H56: 0.03189611869 | I56: 0.05580303016 | J56: 0.02192396483 | K56: 1204.207779 | L56: 1346.573135 | M56: 142.365356 | N56: 24551.67011 | P56: 0.85 | Q56: 1416.222022 | R56: 1357.335182 | S56: 215.4962985 | T56: 40071.80438
B57: 54 | C57: 14793.09572 | D57: 0.06669880975 | E57: 0.03950704832 | F57: 0.05561298231 | G57: 0.01633710538 | H57: 0.01036027218 | I57: 0.01258418457 | J57: 0.01521914824 | K57: 1016.623636 | L57: 1374.28149 | M57: 357.6578535 | N57: 14793.09572 | P57: 0.875 | Q57: 1438.374249 | R57: 1360.850763 | S57: 227.0889093 | T57: 41492.08318
B58: 55 | C58: 35555.62469 | D58: 0.04460894626 | E58: 0.03458086555 | F58: 0.008606823806 | G58: 0.0299386251 | H58: 0.01278792093 | I58: 0.05242417715 | J58: 0.01464153301 | K58: 1321.09573 | L58: 1307.751065 | M58: -13.34466576 | N58: 35555.62469 | P58: 0.9 | Q58: 1463.171533 | R58: 1365.101344 | S58: 240.5000822 | T58: 43113.92466
B59: 56 | C59: 28258.21781 | D59: 0.05088033173 | E59: 0.04058373969 | F59: 0.03285740427 | G59: 0.1081984603 | H59: 0.01346596356 | I59: 0.02469009054 | J59: 0.02894449556 | K59: 1264.526762 | L59: 1349.112787 | M59: 84.58602507 | N59: 28258.21781 | P59: 0.925 | Q59: 1502.288743 | R59: 1369.699786 | S59: 252.9856544 | T59: 45209.09879
B60: 57 | C60: 25992.66516 | D60: 0.04721038278 | E60: 0.007016193322 | F60: 0.0360539352 | G60: 0.02608644792 | H60: 0.05083189106 | I60: 0.0216667211 | J60: 0.01336787855 | K60: 1172.482834 | L60: 1314.893701 | M60: 142.4108665 | N60: 25992.66516 | P60: 0.95 | Q60: 1554.522222 | R60: 1376.374012 | S60: 278.7895391 | T60: 48040.52972
B61: 58 | C61: 21650.32806 | D61: 0.0748270506 | E61: 0.01328883743 | F61: 0.01399374794 | G61: 0.01464111986 | H61: 0.02315918227 | I61: 0.00880690016 | J61: 0.02765613178 | K61: 1099.565074 | L61: 1378.27362 | M61: 278.7085456 | N61: 21650.32806 | P61: 0.975 | Q61: 1626.720884 | R61: 1384.909213 | S61: 303.0960968 | T61: 52869.52862
B62: 59 | C62: 51017.5688 | D62: 0.02315930822 | E62: 0.00796544378 | F62: 0.05913278563 | G62: 0.04634058835 | H62: 0.01179955091 | I62: 0.007752707356 | J62: 0.01494949536 | K62: 1531.978559 | L62: 1256.832774 | M62: -275.1457847 | N62: 51017.5688 | P62: 1 | Q62: 2042.682453 | R62: 1425.164698 | S62: 417.8536959 | T62: 83697.31021
B63: 60 | C63: 24706.38924 | D63: 0.0285819007 | E63: 0.03734813073 | F63: 0.02452672684 | G63: 0.01564389474 | H63: 0.01459674657 | I63: 0.01847902283 | J63: 0.008691465758 | K63: 1132.896407 | L63: 1265.033553 | M63: 132.1371455 | N63: 24706.38924
B64: 61 | C64: 26124.15791 | D64: 0.05627949169 | E64: 0.02018308542 | F64: 0.05988518288 | G64: 0.03135766353 | H64: 0.04781854765 | I64: 0.003049374248 | J64: 0.01497540577 | K64: 1204.425459 | L64: 1349.06784 | M64: 144.6423812 | N64: 26124.15791 | P64: Percent Rank
B65: 62 | C65: 25750.61703 | D65: 0.05446975645 | E65: 0.02559535881 | F65: 0.03398066317 | G65: 0.04327571574 | H65: 0.01586782827 | I65: 0.03268057739 | J65: 0.01265921072 | K65: 1186.066353 | L65: 1339.253051 | M65: 153.1866988 | N65: 25750.61703 | Q65: Model!$C$7 | R65: Model!$D$7 | S65: Model!$C$8 | T65: Model!$C$2
B66: 63 | C66: 24320.28433 | D66: 0.06445579899 | E66: 0.02082271583 | F66: 0.004804747047 | G66: 0.02257297192 | H66: 0.01662937345 | I66: 0.01914535778 | J66: 0.02328077594 | K66: 1139.229263 | L66: 1351.059212 | M66: 211.8299487 | N66: 24320.28433 | Q66: Used_EMC | R66: New_EMC | S66: Premium | T66: Used car
B67: 64 | C67: 34705.95873 | D67: 0.03728741675 | E67: 0.02051413831 | F67: 0.00087440069 | G67: 0.01444186521 | H67: 0.007278912899 | I67: 0.01004590001 | J67: 0.1040674614 | K67: 1274.279441 | L67: 1277.467539 | M67: 3.188097284 | N67: 34705.95873 | P67: Enter Value: | Q67: 1055.39169 | R67: 1280.55362 | S67: -216.8796683 | T67: 18015.12606
B68: 65 | C68: 33335.31554 | D68: 0.04039288904 | E68: 0.01673581311 | F68: 0.01036997893 | G68: 0.02058234901 | H68: 0.01108877808 | I68: 0.05002930236 | J68: 0.01839005662 | K68: 1263.577692 | L68: 1288.700091 | M68: 25.12239969 | N68: 33335.31554 | P68: % rank: | Q68: =_xlfn.PERCENTRANK.INC(K$4:K$1003,Q$67) -> 0.05 | R68: =_xlfn.PERCENTRANK.INC(L$4:L$1003,R$67) -> 0.05 | S68: 0.05 | T68: 0.05
B69: 66 | C69: 17056.34728 | D69: 0.05127134374 | E69: 0.038233826 | F69: 0.02897799065 | G69: 0.05704898263 | H69: 0.06948901869 | I69: 0.02178168177 | J69: 0.02057305831 | K69: 1073.834524 | L69: 1345.431796 | M69: 271.5972719 | N69: 17056.34728
B70: 67 | C70: 35308.4117 | D70: 0.07000492416 | E70: 0.02751531984 | F70: 0.007028664291 | G70: 0.06898662649 | H70: 0.02434013637 | I70: 0.0141010367 | J70: 0.0336746916 | K70: 1361.640362 | L70: 1380.44101 | M70: 18.80064828 | N70: 35308.4117 | P70: Correlations
B71: 68 | C71: 27033.91271 | D71: 0.06174230733 | E71: 0.02128965462 | F71: 0.02494522923 | G71: 0.02436657972 | H71: 0.00732979573 | I71: 0.01317846928 | J71: 0.04510198674 | K71: 1192.897583 | L71: 1348.793425 | M71: 155.8958416 | N71: 27033.91271 | Q71: Model!$C$7 | R71: Model!$D$7 | S71: Model!$C$8 | T71: Model!$C$2
B72: 69 | C72: 30781.10767 | D72: 0.04128567439 | E72: 0.01483018731 | F72: 0.007742084104 | G72: 0.01327203151 | H72: 0.01825640318 | I72: 0.05525373836 | J72: 0.0153602921 | K72: 1221.489502 | L72: 1289.574885 | M72: 68.08538331 | N72: 30781.10767 | P72: Risk Inputs | Q72: Used_EMC | R72: New_EMC | S72: Premium | T72: Used car
B73: 70 | C73: 28859.56887 | D73: 0.05263062897 | E73: 0.01473072886 | F73: 0.01525528219 | G73: 0.02179078211 | H73: 0.02164805726 | I73: 0.04471626663 | J73: 0.00880245841 | K73: 1209.666319 | L73: 1322.507447 | M73: 112.841128 | N73: 28859.56887 | P73: Model!$C$2 | Q73: =CORREL($C$4:$C$1003,K$4:K$1003) -> 0.9833356007 | S73: =CORREL($C$4:$C$1003,M$4:M$1003) -> -0.9908927022 | T73: 1
B74: 71 | C74: 28925.19002 | D74: 0.04505671806 | E74: 0.007598626967 | F74: 0.0214538153 | G74: 0.01963622456 | H74: 0.06886958199 | I74: 0.01626100728 | J74: 0.008081122616 | K74: 1209.975282 | L74: 1305.887909 | M74: 95.91262625 | N74: 28925.19002 | P74: Borrowing_rate | Q74: =CORREL($D$4:$D$1003,K$4:K$1003) -> 0.04702475052 | R74: =CORREL($D$4:$D$1003,L$4:L$1003) -> 0.9107448588 | S74: 0.1241169572
B75: 72 | C75: 24725.97459 | D75: 0.03202167467 | E75: 0.03588924955 | F75: 0.02153792376 | G75: 0.02254077671 | H75: 0.03300017549 | I75: 0.02678090254 | J75: 0.03123605559 | K75: 1147.938902 | L75: 1279.419703 | M75: 131.480801 | N75: 24725.97459 | P75: 'O&M'!$B$4 | Q75: =CORREL($E$4:$E$1003,K$4:K$1003) -> 0.1451960875 | R75: =CORREL($E$4:$E$1003,L$4:L$1003) -> 0.2814441455 | S75: -0.09293696206
B76: 73 | C76: 19657.44119 | D76: 0.04782513779 | E76: 0.02465956057 | F76: 0.04475850286 | G76: 0.04465116047 | H76: 0.01176132064 | I76: 0.08993057456 | J76: 0.04485560514 | K76: 1105.451466 | L76: 1332.418859 | M76: 226.9673935 | N76: 19657.44119 | P76: 'O&M'!$B$5 | Q76: =CORREL($F$4:$F$1003,K$4:K$1003) -> 0.08123999094 | R76: =CORREL($F$4:$F$1003,L$4:L$1003) -> 0.2100674024 | S76: -0.0421038029
B77: 74 | C77: 27088.44974 | D77: 0.03313604864 | E77: 0.04247076098 | F77: 0.01451487804 | G77: 0.05369115563 | H77: 0.005754414872 | I77: 0.01717281568 | J77: 0.04636363794 | K77: 1190.110613 | L77: 1284.639831 | M77: 94.52921821 | N77: 27088.44974 | P77: 'O&M'!$B$6 | Q77: =CORREL($G$4:$G$1003,K$4:K$1003) -> 0.1156564925 | R77: =CORREL($G$4:$G$1003,L$4:L$1003) -> 0.1526606426 | S77: -0.08748754579
B78: 75 | C78: 39383.80465 | D78: 0.04042416484 | E78: 0.04202350096 | F78: 0.0276243699 | G78: 0.02441675 | H78: 0.02372191662 | I78: 0.01053692602 | J78: 0.02695066485 | K78: 1385.556193 | L78: 1301.57827 | M78: -83.97792358 | N78: 39383.80465 | P78: 'O&M'!$B$7 | Q78: =CORREL($H$4:$H$1003,K$4:K$1003) -> 0.02090963101 | R78: =CORREL($H$4:$H$1003,L$4:L$1003) -> 0.128150476 | S78: 0.003102924544
B79: 76 | C79: 25830.79443 | D79: 0.03013636272 | E79: 0.1135411806 | F79: 0.06717729126 | G79: 0.02376799878 | H79: 0.0138542776 | I79: 0.007296983406 | J79: 0.04555147969 | K79: 1241.082711 | L79: 1311.262106 | M79: 70.17939539 | N79: 25830.79443 | P79: 'O&M'!$B$8 | Q79: =CORREL($I$4:$I$1003,K$4:K$1003) -> 0.001468641551 | R79: =CORREL($I$4:$I$1003,L$4:L$1003) -> 0.08497631222 | S79: 0.01451362997
B80: 77 | C80: 30885.78443 | D80: 0.0422488375 | E80: 0.02511470493 | F80: 0.009895885795 | G80: 0.06942448066 | H80: 0.004446322043 | I80: 0.01045195559 | J80: 0.01819164248 | K80: 1244.430464 | L80: 1301.598697 | M80: 57.16823314 | N80: 30885.78443 | P80: 'O&M'!$B$9 | Q80: =CORREL($J$4:$J$1003,K$4:K$1003) -> -0.03273114253 | R80: =CORREL($J$4:$J$1003,L$4:L$1003) -> 0.05698194847 | S80: 0.04361034801
B81: 78 | C81: 52461.58419 | D81: 0.04905276282 | E81: 0.02890806628 | F81: 0.007787576355 | G81: 0.04200573536 | H81: 0.01382209952 | I81: 0.04187823393 | J81: 0.02871334845 | K81: 1599.240556 | L81: 1319.734062 | M81: -279.5064943 | N81: 52461.58419
B82: 79 | C82: 27317.93562 | D82: 0.07165184632 | E82: 0.02170530394 | F82: 0.009561315951 | G82: 0.01255302037 | H82: 0.009373197249 | I82: 0.04313745569 | J82: 0.04032532135 | K82: 1200.648774 | L82: 1372.522768 | M82: 171.8739944 | N82: 27317.93562
B83: 80 | C83: 35946.91312 | D83: 0.05303738294 | E83: 0.00689434866 | F83: 0.01813308946 | G83: 0.03898035717 | H83: 0.02465232238 | I83: 0.01767830701 | J83: 0.007856669129 | K83: 1324.051277 | L83: 1323.031195 | M83: -1.020082437 | N83: 35946.91312
B84: 81 | C84: 23309.44188 | D84: 0.05754876496 | E84: 0.02837928076 | F84: 0.03842395931 | G84: 0.01921085053 | H84: 0.06819819439 | I84: 0.03588825572 | J84: 0.02213031317 | K84: 1162.420262 | L84: 1353.942806 | M84: 191.5225439 | N84: 23309.44188
B85: 82 | C85: 35536.56321 | D85: 0.04372714528 | E85: 0.08209101198 | F85: 0.06208362856 | G85: 0.0262526222 | H85: 0.02130012566 | I85: 0.01210338578 | J85: 0.01683322824 | K85: 1380.363882 | L85: 1334.032317 | M85: -46.33156465 | N85: 35536.56321
B86: 83 | C86: 29667.89716 | D86: 0.05269159568 | E86: 0.01375517723 | F86: 0.01660587118 | G86: 0.009479319798 | H86: 0.04495413574 | I86: 0.02876870641 | J86: 0.03156967322 | K86: 1224.135233 | L86: 1323.274481 | M86: 99.13924774 | N86: 29667.89716
B87: 84 | C87: 36388.80304 | D87: 0.04932595181 | E87: 0.01394323477 | F87: 0.03152434212 | G87: 0.04599938816 | H87: 0.02815135778 | I87: 0.03024033617 | J87: 0.00437408594 | K87: 1346.400077 | L87: 1322.773061 | M87: -23.62701596 | N87: 36388.80304
B88: 85 | C88: 28386.74694 | D88: 0.02635729789 | E88: 0.03768450121 | F88: 0.03599379936 | G88: 0.0148085538 | H88: 0.07688864061 | I88: 0.07850888003 | J88: 0.0156937357 | K88: 1233.250376 | L88: 1281.434072 | M88: 48.18369529 | N88: 28386.74694
B89: 86 | C89: 25648.36501 | D89: 0.05041407797 | E89: 0.01461284308 | F89: 0.03006976445 | G89: 0.02322920174 | H89: 0.01048656291 | I89: 0.01750509719 | J89: 0.01651169541 | K89: 1155.756177 | L89: 1316.71855 | M89: 160.9623733 | N89: 25648.36501
B90: 87 | C90: 43721.18321 | D90: 0.03351619686 | E90: 0.02144344572 | F90: 0.0243691611 | G90: 0.06505017953 | H90: 0.0009433923476 | I90: 0.02940339372 | J90: 0.02158363904 | K90: 1439.922654 | L90: 1282.848271 | M90: -157.0743826 | N90: 43721.18321
B91: 88 | C91: 22184.82021 | D91: 0.06371298835 | E91: 0.02630126544 | F91: 0.01005841976 | G91: 0.0113362835 | H91: 0.03341364804 | I91: 0.0009052651007 | J91: 0.01701202822 | K91: 1105.577921 | L91: 1350.339933 | M91: 244.7620114 | N91: 22184.82021
B92: 89 | C92: 26756.82167 | D92: 0.05301432022 | E92: 0.01680870325 | F92: 0.04375557371 | G92: 0.06871188339 | H92: 0.01022279808 | I92: 0.0479648025 | J92: 0.005522038994 | K92: 1213.339646 | L92: 1341.141363 | M92: 127.8017172 | N92: 26756.82167
B93: 90 | C93: 51374.49422 | D93: 0.05379863837 | E93: 0.06771624549 | F93: 0.12 | G93: 0.009223738792 | H93: 0.01336688135 | I93: 0.03553004322 | J93: 0.02170292324 | K93: 1671.334776 | L93: 1369.783306 | M93: -301.55147 | N93: 51374.49422
B94: 91 | C94: 46330.16738 | D94: 0.06867387341 | E94: 0.0582836694 | F94: 0.0252415948 | G94: 0.02988057067 | H94: 0.009003640657 | I94: 0.01281624461 | J94: 0.09104949136 | K94: 1563.089193 | L94: 1384.372334 | M94: -178.7168595 | N94: 46330.16738
B95: 92 | C95: 22796.99559 | D95: 0.05883330801 | E95: 0.08744368523 | F95: 0.01335528549 | G95: 0.01619405364 | H95: 0.01437740226 | I95: 0.01871774046 | J95: 0.03231947953 | K95: 1159.18182 | L95: 1359.365873 | M95: 200.1840531 | N95: 22796.99559
B96: 93 | C96: 31385.86496 | D96: 0.05227376071 | E96: 0.01752797267 | F96: 0.01895831875 | G96: 0.03756006498 | H96: 0.02722889837 | I96: 0.01457403791 | J96: 0.004865395044 | K96: 1256.541167 | L96: 1324.522551 | M96: 67.98138367 | N96: 31385.86496
B97: 94 | C97: 25364.84744 | D97: 0.04701716556 | E97: 0.03451042577 | F97: 0.02655693564 | G97: 0.01376107999 | H97: 0.026983395 | I97: 0.01526542927 | J97: 0.02350621109 | K97: 1162.179419 | L97: 1314.336427 | M97: 152.1570085 | N97: 25364.84744
B98: 95 | C98: 29434.83244 | D98: 0.05852833899 | E98: 0.009850168734 | F98: 0.01418568483 | G98: 0.01982857383 | H98: 0.01831473196 | I98: 0.04292558245 | J98: 0.01800375399 | K98: 1219.903161 | L98: 1335.681119 | M98: 115.7779582 | N98: 29434.83244
B99: 96 | C99: 31313.15525 | D99: 0.05194518687 | E99: 0.03435076811 | F99: 0.02449894241 | G99: 0.01714840812 | H99: 0.02167847205 | I99: 0.02660098024 | J99: 0.0238275236 | K99: 1263.975516 | L99: 1327.883279 | M99: 63.907763 | N99: 31313.15525
B100: 97 | C100: 34503.51423 | D100: 0.04764594277 | E100: 0.02454077766 | F100: 0.03353244321 | G100: 0.02261928244 | H100: 0.09874887815 | I100: 0.02283080447 | J100: 0.04263320301 | K100: 1339.976915 | L100: 1330.609625 | M100: -9.367290761 | N100: 34503.51423
B101: 98 | C101: 39492.9866 | D101: 0.06204112543 | E101: 0.05116531529 | F101: 0.02926753286 | G101: 0.02872186909 | H101: 0.02960071618 | I101: 0.006661397868 | J101: 0.03380384981 | K101: 1432.474721 | L101: 1364.470372 | M101: -68.0043486 | N101: 39492.9866
B102: 99 | C102: 19389.17488 | D102: 0.05785487246 | E102: 0.01684310002 | F102: 0.03330491861 | G102: 0.02522010177 | H102: 0.04595298636 | I102: 0.08342126799 | J102: 0.01411106524 | K102: 1091.484584 | L102: 1351.654696 | M102: 260.1701127 | N102: 19389.17488
B103: 100 | C103: 38233.71169 | D103: 0.06053302522 | E103: 0.04750634535 | F103: 0.006640431609 | G103: 0.04057612964 | H103: 0.03593053821 | I103: 0.008408837945 | J103: 0.048835483 | K103: 1402.523497 | L103: 1357.25683 | M103: -45.26666677 | N103: 38233.71169
B104: 101 | C104: 34024.40239 | D104: 0.05077999023 | E104: 0.03431426184 | F104: 0.004243472219 | G104: 0.04682764623 | H104: 0.0619122669 | I104: 0.06198601654 | J104: 0.03096741161 | K104: 1332.026162 | L104: 1336.860564 | M104: 4.834401762 | N104: 34024.40239
B105: 102 | C105: 28538.9425 | D105: 0.05956748178 | E105: 0.03286482003 | F105: 0.02244527611 | G105: 0.01824440646 | H105: 0.003815546863 | I105: 0.009787817158 | J105: 0.007400961525 | K105: 1213.569314 | L105: 1341.938878 | M105: 128.3695637 | N105: 28538.9425
B106: 103 | C106: 30702.78214 | D106: 0.0350665723 | E106: 0.0199502778 | F106: 0.009227208298 | G106: 0.008598497323 | H106: 0.007926764511 | I106: 0.06345940694 | J106: 0.009019402618 | K106: 1213.293623 | L106: 1273.431781 | M106: 60.13815821 | N106: 30702.78214
B107: 104 | C107: 26310.49782 | D107: 0.05509059708 | E107: 0.05872978468 | F107: 0.03426228341 | G107: 0.02014596587 | H107: 0.003973420341 | I107: 0.03747099457 | J107: 0.04770168056 | K107: 1210.167372 | L107: 1347.67956 | M107: 137.5121878 | N107: 26310.49782
B108: 105 | C108: 23473.38615 | D108: 0.06016652895 | E108: 0.03709770385 | F108: 0.03949974068 | G108: 0.03369291532 | H108: 0.0251972008 | I108: 0.01193278193 | J108: 0.001931789198 | K108: 1158.160162 | L108: 1356.705615 | M108: 198.5454531 | N108: 23473.38615
B109: 106 | C109: 19012.45923 | D109: 0.0448685397 | E109: 0.005113633726 | F109: 0.01166029087 | G109: 0.02153306701 | H109: 0.04693078361 | I109: 0.01172477715 | J109: 0.01224455963 | K109: 1037.525339 | L109: 1298.354907 | M109: 260.8295672 | N109: 19012.45923
B110: 107 | C110: 45052.31562 | D110: 0.05309157649 | E110: 0.03660394912 | F110: 0.0398358535 | G110: 0.03984641856 | H110: 0.04747188089 | I110: 0.03705881647 | J110: 0.02174290937 | K110: 1522.442301 | L110: 1346.876461 | M110: -175.5658403 | N110: 45052.31562
B111: 108 | C111: 21476.03021 | D111: 0.03880781102 | E111: 0.02099963375 | F111: 0.0271033526 | G111: 0.04444018127 | H111: 0.01506860059 | I111: 0.0682087502 | J111: 0.01984780852 | K111: 1107.702692 | L111: 1299.159567 | M111: 191.4568746 | N111: 21476.03021
B112: 109 | C112: 37300.28405 | D112: 0.05403782535 | E112: 0.02184542769 | F112: 0.02247943868 | G112: 0.02267581846 | H112: 0.007614250608 | I112: 0.03094251838 | J112: 0.03164826785 | K112: 1353.189224 | L112: 1328.378408 | M112: -24.81081598 | N112: 37300.28405
B113: 110 | C113: 59828.06432 | D113: 0.05081432224 | E113: 0.01812036464 | F113: 0.0172946736 | G113: 0.04697562208 | H113: 0.01515093884 | I113: 0.01960483746 | J113: 0.01212900843 | K113: 1715.52874 | L113: 1321.382929 | M113: -394.1458108 | N113: 59828.06432
B114: 111 | C114: 27293.16591 | D114: 0.07218700724 | E114: 0.005962945081 | F114: 0.002807862318 | G114: 0.03494152945 | H114: 0.004945208667 | I114: 0.02007215177 | J114: 0.02774670271 | K114: 1187.924967 | L114: 1367.950479 | M114: 180.025512 | N114: 27293.16591
B115: 112 | C115: 45202.15454 | D115: 0.03465626145 | E115: 0.02094469549 | F115: 0.005742184272 | G115: 0.02384769403 | H115: 0.01007612426 | I115: 0.03796167633 | J115: 0.05935176623 | K115: 1442.904666 | L115: 1275.542898 | M115: -167.3617684 | N115: 45202.15454
B116: 113 | C116: 25088.94793 | D116: 0.03251022939 | E116: 0.01298767642 | F116: 0.06512235922 | G116: 0.01538321577 | H116: 0.04022612217 | I116: 0.001488176259 | J116: 0.04849042122 | K116: 1158.319354 | L116: 1282.75166 | M116: 124.4323065 | N116: 25088.94793
B117: 114 | C117: 36055.64485 | D117: 0.04411137235 | E117: 0.0362185051 | F117: 0.02094159787 | G117: 0.0372682179 | H117: 0.04513790599 | I117: 0.004883616988 | J117: 0.05410332897 | K117: 1345.842518 | L117: 1314.682336 | M117: -31.16018207 | N117: 36055.64485
B118: 115 | C118: 31246.95041 | D118: 0.04896913425 | E118: 0.004658174444 | F118: 0.02166980191 | G118: 0.04504253414 | H118: 0.03757004863 | I118: 0.007606141503 | J118: 0.0557535018 | K118: 1253.892865 | L118: 1317.385106 | M118: 63.49224176 | N118: 31246.95041
B119: 116 | C119: 30973.35616 | D119: 0.03888832294 | E119: 0.00720393815 | F119: 0.01910245166 | G119: 0.02133909353 | H119: 0.03106363725 | I119: 0.01922714421 | J119: 0.00154468811 | K119: 1221.534855 | L119: 1283.21296 | M119: 61.67810419 | N119: 30973.35616
B120: 117 | C120: 29877.23091 | D120: 0.03152165413 | E120: 0.01410532736 | F120: 0.05833561627 | G120: 0.03117092312 | H120: 0.02568462815 | I120: 0.02010321007 | J120: 0.007436139653 | K120: 1229.488799 | L120: 1279.714131 | M120: 50.22533207 | N120: 29877.23091
B121: 118 | C121: 18233.61846 | D121: 0.05187225693 | E121: 0.006462739294 | F121: 0.01443515255 | G121: 0.01834756924 | H121: 0.04661168131 | I121: 0.02352269217 | J121: 0.009148694989 | K121: 1032.475741 | L121: 1318.451083 | M121: 285.9753423 | N121: 18233.61846
B122: 119 | C122: 35444.21476 | D122: 0.04205637668 | E122: 0.05269309538 | F122: 0.01548970842 | G122: 0.01213327941 | H122: 0.01786323208 | I122: 0.0469620472 | J122: 0.03756454939 | K122: 1328.114048 | L122: 1306.816431 | M122: -21.29761721 | N122: 35444.21476
B123: 120 | C123: 29098.25386 | D123: 0.05149530612 | E123: 0.02602681993 | F123: 0.01195109167 | G123: 0.03282322093 | H123: 0.05708282377 | I123: 0.01815461823 | J123: 0.040642869 | K123: 1233.826606 | L123: 1329.606768 | M123: 95.78016181 | N123: 29098.25386
B124: 121 | C124: 25819.83722 | D124: 0.05224960459 | E124: 0.05451470784 | F124: 0.0632337165 | G124: 0.002593694899 | H124: 0.01698947907 | I124: 0.03044637792 | J124: 0.04377108456 | K124: 1208.159222 | L124: 1344.161327 | M124: 136.002105 | N124: 25819.83722
B125: 122 | C125: 31289.52983 | D125: 0.06327969041 | E125: 0.01390954876 | F125: 0.03913457852 | G125: 0.04666972068 | H125: 0.01497680057 | I125: 0.02449911326 | J125: 0.02489461699 | K125: 1282.07337 | L125: 1360.703924 | M125: 78.630554 | N125: 31289.52983
B126: 123 | C126: 34445.57071 | D126: 0.06780565665 | E126: 0.005705704768 | F126: 0.01396456662 | G126: 0.03512100397 | H126: 0.05244347634 | I126: 0.05505005305 | J126: 0.01128544137 | K126: 1332.785829 | L126: 1369.169192 | M126: 36.38336303 | N126: 34445.57071
B127: 124 | C127: 28766.82181 | D127: 0.0476056199 | E127: 0.01191937684 | F127: 0.01776460487 | G127: 0.0505580322 | H127: 0.01975743013 | I127: 0.032721238 | J127: 0.02162834357 | K127: 1213.961533 | L127: 1314.404756 | M127: 100.4432228 | N127: 28766.82181
B128: 125 | C128: 31663.47846 | D128: 0.06054242855 | E128: 0.01048435111 | F128: 0.05870672129 | G128: 0.01474297416 | H128: 0.004873752432 | I128: 0.005153153589 | J128: 0.0006592469424 | K128: 1268.351453 | L128: 1345.456202 | M128: 77.10474886 | N128: 31663.47846
B129: 126 | C129: 23526.10824 | D129: 0.03946815654 | E129: 0.009738528907 | F129: 0.02986019204 | G129: 0.06814699183 | H129: 0.03305922761 | I129: 0.05320004202 | J129: 0.07412216493 | K129: 1154.953318 | L129: 1307.823785 | M129: 152.8704676 | N129: 23526.10824
B130: 127 | C130: 45920.38412 | D130: 0.06388504248 | E130: 0.0215070594 | F130: 0.01662854756 | G130: 0.09077821937 | H130: 0.006833895137 | I130: 0.03102206401 | J130: 0.01278542788 | K130: 1537.591773 | L130: 1366.876619 | M130: -170.715154 | N130: 45920.38412
B131: 128 | C131: 28529.84304 | D131: 0.06966152103 | E131: 0.02263664723 | F131: 0.03074398952 | G131: 0.006873875247 | H131: 0.01835230153 | I131: 0.03461302459 | J131: 0.02373403513 | K131: 1229.064314 | L131: 1371.670134 | M131: 142.6058201 | N131: 28529.84304
B132: 129 | C132: 27852.04003 | D132: 0.04888602296 | E132: 0.04627654395 | F132: 0.05960380872 | G132: 0.02466772003 | H132: 0.00609897122 | I132: 0.02842482144 | J132: 0.007746575552 | K132: 1231.632677 | L132: 1332.38228 | M132: 100.7496032 | N132: 27852.04003
B133: 130 | C133: 33770.42437 | D133: 0.04995880222 | E133: 0.01071969397 | F133: 0.04104928722 | G133: 0.0267846412 | H133: 0.009815888172 | I133: 0.03942506765 | J133: 0.01472148211 | K133: 1296.04224 | L133: 1320.174886 | M133: 24.13264657 | N133: 33770.42437
B134: 131 | C134: 31478.77675 | D134: 0.04785339344 | E134: 0.03328732918 | F134: 0.005754505229 | G134: 0.05554807388 | H134: 0.04806234754 | I134: 0.003790131398 | J134: 0.01878701691 | K134: 1271.322866 | L134: 1321.503675 | M134: 50.18080904 | N134: 31478.77675
B135: 132 | C135: 26457.5734 | D135: 0.04051585313 | E135: 0.01098404633 | F135: 0.007992637945 | G135: 0.01533448406 | H135: 0.01960720654 | I135: 0.04550543042 | J135: 0.01095913603 | K135: 1148.974429 | L135: 1285.730684 | M135: 136.7562547 | N135: 26457.5734
B136: 133 | C136: 17371.9697 | D136: 0.05340698911 | E136: 0.007725832014 | F136: 0.03272494362 | G136: 0.03200217456 | H136: 0.02209427952 | I136: 0.01265508058 | J136: 0.02249326622 | K136: 1028.137121 | L136: 1326.681541 | M136: 298.5444205 | N136: 17371.9697
B137: 134 | C137: 18889.19844 | D137: 0.04537925192 | E137: 0.02104619122 | F137: 0.050675923 | G137: 0.03996774242 | H137: 0.03129234808 | I137: 0.006802052907 | J137: 0.08290192564 | K137: 1081.934957 | L137: 1321.374328 | M137: 239.4393713 | N137: 18889.19844
B138: 135 | C138: 19380.95298 | D138: 0.04421124692 | E138: 0.06633695049 | F138: 0.03892596798 | G138: 0.03045046915 | H138: 0.005177677591 | I138: 0.02758844296 | J138: 0.009353827128 | K138: 1097.563303 | L138: 1322.320148 | M138: 224.7568454 | N138: 19380.95298
B139: 136 | C139: 22979.7319 | D139: 0.0424613305 | E139: 0.04409882542 | F139: 0.008899711493 | G139: 0.05238375892 | H139: 0.05078495015 | I139: 0.02239254012 | J139: 0.0395063893 | K139: 1148.037955 | L139: 1315.305584 | M139: 167.2676283 | N139: 22979.7319
B140: 137 | C140: 36924.8184 | D140: 0.05021844342 | E140: 0.05015800507 | F140: 0.007169056318 | G140: 0.02740993807 | H140: 0.06599221203 | I140: 0.011536548 | J140: 0.01801839996 | K140: 1369.713419 | L140: 1331.453443 | M140: -38.25997537 | N140: 36924.8184
B141: 138 | C141: 26104.91104 | D141: 0.0484809381 | E141: 0.04077121411 | F141: 0.02545551083 | G141: 0.09479944773 | H141: 0.07970505962 | I141: 0.01270890979 | J141: 0.01027206861 | K141: 1236.48404 | L141: 1346.969466 | M141: 110.4854257 | N141: 26104.91104
B142: 139 | C142: 31813.45042 | D142: 0.05986811332 | E142: 0.0009198047448 | F142: 0.04520071135 | G142: 0.06630354939 | H142: 0.02834189905 | I142: 0.02501258503 | J142: 0.01696277816 | K142: 1293.72803 | L142: 1354.792869 | M142: 61.06483927 | N142: 31813.45042
B143: 140 | C143: 32823.72627 | D143: 0.03124086564 | E143: 0.02223469289 | F143: 0.01018456287 | G143: 0.01214319285 | H143: 0.09198497129 | I143: 0.01294254249 | J143: 0.01776315323 | K143: 1264.524403 | L143: 1274.47851 | M143: 9.954106117 | N143: 32823.72627
B144: 141 | C144: 23941.14311 | D144: 0.04582324557 | E144: 0.06013853876 | F144: 0.01126720312 | G144: 0.0169792452 | H144: 0.004550705192 | I144: 0.04388843249 | J144: 0.02985421546 | K144: 1148.680109 | L144: 1315.999505 | M144: 167.319396 | N144: 23941.14311
B145: 142 | C145: 22940.78056 | D145: 0.04094755768 | E145: 0.03466069251 | F145: 0.03060370213 | G145: 0.005715063391 | H145: 0.01543711714 | I145: 0.01382381734 | J145: 0.02312078589 | K145: 1112.997893 | L145: 1295.700766 | M145: 182.7028723 | N145: 22940.78056
B146: 143 | C146: 23859.38646 | D146: 0.06069835575 | E146: 0.02717267928 | F146: 0.0244427965 | G146: 0.04111898516 | H146: 0.0262921672 | I146: 0.04991960507 | J146: 0.02945202549 | K146: 1164.415597 | L146: 1357.86282 | M146: 193.4472235 | N146: 23859.38646
B147: 144 | C147: 36578.17818 | D147: 0.05680306272 | E147: 0.05175366042 | F147: 0.03441049421 | G147: 0.01554279947 | H147: 0.04142672056 | I147: 0.007870342899 | J147: 0.07494840446 | K147: 1382.76768 | L147: 1353.374971 | M147: -29.39270861 | N147: 36578.17818
B148: 145 | C148: 37606.2905 | D148: 0.04291536882 | E148: 0.00958439067 | F148: 0.006205315089 | G148: 0.01601844478 | H148: 0.02082035867 | I148: 0.01199538515 | J148: 0.01897621264 | K148: 1319.074579 | L148: 1288.212024 | M148: -30.8625552 | N148: 37606.2905
B149: 146 | C149: 37659.50072 | D149: 0.02915296614 | E149: 0.03650717796 | F149: 0.03143165264 | G149: 0.02027454098 | H149: 0.01609080464 | I149: 0.0129921948 | J149: 0.03659769666 | K149: 1338.179905 | L149: 1270.487322 | M149: -67.69258284 | N149: 37659.50072
B150: 147 | C150: 33757.93219 | D150: 0.04823388848 | E150: 0.01039945389 | F150: 0.0218910198 | G150: 0.03566200233 | H150: 0.04624487806 | I150: 0.06152218452 | J150: 0.0209779822 | K150: 1305.11432 | L150: 1321.014781 | M150: 15.90046105 | N150: 33757.93219
B151: 148 | C151: 21764.56071 | D151: 0.04857215827 | E151: 0.0239767226 | F151: 0.02514503068 | G151: 0.007564713256 | H151: 0.0776450603 | I151: 0.004402598419 | J151: 0.02131708443 | K151: 1109.009674 | L151: 1319.942405 | M151: 210.9327309 | N151: 21764.56071
B152: 149 | C152: 30837.22221 | D152: 0.05313608388 | E152: 0.03184267311 | F152: 0.001790980982 | G152: 0.02248084418 | H152: 0.0484284749 | I152: 0.03633778943 | J152: 0.02483785319 | K152: 1256.245657 | L152: 1330.397041 | M152: 74.15138404 | N152: 30837.22221
B153: 150 | C153: 31835.25949 | D153: 0.04500323569 | E153: 0.02241790068 | F153: 0.02785512634 | G153: 0.03310253028 | H153: 0.008181957544 | I153: 0.03169023046 | J153: 0.00472277976 | K153: 1259.260022 | L153: 1307.227853 | M153: 47.96783178 | N153: 31835.25949
B154: 151 | C154: 14822.8048 | D154: 0.05766450711 | E154: 0.02054712122 | F154: 0.09319910294 | G154: 0.01947951288 | H154: 0.02288914675 | I154: 0.01835297027 | J154: 0.02952326912 | K154: 1030.422056 | L154: 1357.84071 | M154: 327.418654 | N154: 14822.8048
B155: 152 | C155: 26194.0148 | D155: 0.05358394689 | E155: 0.03310146006 | F155: 0.03266686874 | G155: 0.04587016779 | H155: 0.01451992639 | I155: 0.03397436265 | J155: 0.03339467758 | K155: 1200.79269 | L155: 1340.806444 | M155: 140.0137535 | N155: 26194.0148
B156: 153 | C156: 32292.1504 | D156: 0.06509949401 | E156: 0.01102536963 | F156: 0.05449302309 | G156: 0.1140926215 | H156: 0.01357969784 | I156: 0.04890047824 | J156: 0.009257796491 | K156: 1343.593781 | L156: 1385.638627 | M156: 42.04484535 | N156: 32292.1504
B157: 154 | C157: 28416.46527 | D157: 0.05534204223 | E157: 0.02276330695 | F157: 0.03715902938 | G157: 0.004825291725 | H157: 0.05907351623 | I157: 0.05409986642 | J157: 0.01283496542 | K157: 1232.016012 | L157: 1342.314367 | M157: 110.2983552 | N157: 28416.46527
B158: 155 | C158: 32109.5496 | D158: 0.04386302505 | E158: 0.06868315764 | F158: 0.03663784319 | G158: 0.006125305139 | H158: 0.02542214438 | I158: 0.009912181751 | J158: 0.01528287217 | K158: 1290.757715 | L158: 1317.650509 | M158: 26.89279388 | N158: 32109.5496
B159: 156 | C159: 36190.27356 | D159: 0.04195787309 | E159: 0.02371022595 | F159: 0.03874738961 | G159: 0.0584919725 | H159: 0.03861204799 | I159: 0.007459983857 | J159: 0.01546137428 | K159: 1350.809533 | L159: 1311.777337 | M159: -39.03219579 | N159: 36190.27356
B160: 157 | C160: 41487.63281 | D160: 0.04141055334 | E160: 0.08272519418 | F160: 0.001879631496 | G160: 0.03477269407 | H160: 0.02948181983 | I160: 0.01468081704 | J160: 0.008202241529 | K160: 1439.597571 | L160: 1313.323217 | M160: -126.2743542 | N160: 41487.63281
B161: 158 | C161: 21162.21918 | D161: 0.05098625332 | E161: 0.04957138903 | F161: 0.0351531559 | G161: 0.001650468853 | H161: 0.0293580199 | I161: 0.01946712732 | J161: 0.03623319263 | K161: 1111.460063 | L161: 1331.243234 | M161: 219.7831712 | N161: 21162.21918
B162: 159 | C162: 34946.00929 | D162: 0.04402115181 | E162: 0.01250513209 | F162: 0.05898607086 | G162: 0.03250549902 | H162: 0.001682308326 | I162: 0.03289781938 | J162: 0.003905564544 | K162: 1316.2126 | L162: 1308.826293 | M162: -7.386307063 | N162: 34946.00929
B163: 160 | C163: 29742.82331 | D163: 0.03560052225 | E163: 0.01325628755 | F163: 0.008030313853 | G163: 0.03064369685 | H163: 0.02604645932 | I163: 0.03069551569 | J163: 0.03698803851 | K163: 1206.179218 | L163: 1278.160112 | M163: 71.98089447 | N163: 29742.82331
B164: 161 | C164: 32020.41299 | D164: 0.04890263842 | E164: 0.05973879885 | F164: 0.008282842819 | G164: 0.02557211392 | H164: 0.02114984165 | I164: 0.05477703968 | J164: 0.01549078357 | K164: 1289.874075 | L164: 1328.334588 | M164: 38.46051386 | N164: 32020.41299
B165: 162 | C165: 25560.74352 | D165: 0.05526548035 | E165: 0.02032849974 | F165: 0.08695506197 | G165: 0.007503841648 | H165: 0.03587165986 | I165: 0.03052993411 | J165: 0.01762164742 | K165: 1201.417452 | L165: 1349.720581 | M165: 148.3031287 | N165: 25560.74352
B166: 163 | C166: 44896.87186 | D166: 0.05770728046 | E166: 0.005581004781 | F166: 0.01202065073 | G166: 0.06582795659 | H166: 0.01589493093 | I166: 0.05308822279 | J166: 0.01863535019 | K166: 1491.899713 | L166: 1342.094106 | M166: -149.8056071 | N166: 44896.87186
B167: 164 | C167: 41186.78143 | D167: 0.05148140064 | E167: 0.01247825495 | F167: 0.03372498538 | G167: 0.01745232054 | H167: 0.05994690279 | I167: 0.01522935514 | J167: 0.03270546297 | K167: 1424.483155 | L167: 1327.289697 | M167: -97.19345795 | N167: 41186.78143
B168: 165 | C168: 28893.7932 | D168: 0.06900169115 | E168: 0.01638275704 | F168: 0.02312028527 | G168: 0.007864104226 | H168: 0.007149268979 | I168: 0.00837361164 | J168: 0.01457027419 | K168: 1215.657299 | L168: 1360.975169 | M168: 145.3178694 | N168: 28893.7932
B169: 166 | C169: 14133.759 | D169: 0.04335228226 | E169: 0.01132874899 | F169: 0.03447419121 | G169: 0.05169769328 | H169: 0.02695405211 | I169: 0.03839292218 | J169: 0.01607586704 | K169: 992.1870405 | L169: 1309.736864 | M169: 317.5498231 | N169: 14133.759
B170: 167 | C170: 34896.30028 | D170: 0.05612496862 | E170: 0.03909490061 | F170: 0.01119148379 | G170: 0.03916368156 | H170: 0.05183434096 | I170: 0.009401770768 | J170: 0.02202188638 | K170: 1339.898453 | L170: 1344.812724 | M170: 4.914271409 | N170: 34896.30028
B171: 168 | C171: 24503.58147 | D171: 0.04240078062 | E171: 0.03589601711 | F171: 0.008867353533 | G171: 0.04137848577 | H171: 0.01613587653 | I171: 0.04321931556 | J171: 0.12 | K171: 1162.435072 | L171: 1310.646541 | M171: 148.2114692 | N171: 24503.58147
B172: 169 | C172: 22157.66341 | D172: 0.03542709565 | E172: 0.01598648598 | F172: 0.03001119657 | G172: 0.02078284574 | H172: 0.01285031234 | I172: 0.01164465055 | J172: 0.03809908028 | K172: 1090.366994 | L172: 1278.404309 | M172: 188.0373148 | N172: 22157.66341
B173: 170 | C173: 25766.73835 | D173: 0.07187890504 | E173: 0.0278913194 | F173: 0.04163187148 | G173: 0.01915261118 | H173: 0.0379793848 | I173: 0.01636305999 | J173: 0.0579768871 | K173: 1206.704067 | L173: 1388.399184 | M173: 181.695117 | N173: 25766.73835
B174: 171 | C174: 46214.3288 | D174: 0.04091017751 | E174: 0.01345706601 | F174: 0.004422544593 | G174: 0.006161039149 | H174: 0.001117255927 | I174: 0.02031367329 | J174: 0.02110208984 | K174: 1443.721753 | L174: 1279.446925 | M174: -164.274828 | N174: 46214.3288
B175: 172 | C175: 22744.39748 | D175: 0.03538473201 | E175: 0.0334762851 | F175: 0.03296323644 | G175: 0.02339053842 | H175: 0.04613588538 | I175: 0.01324467312 | J175: 0.01017533995 | K175: 1124.598701 | L175: 1290.156482 | M175: 165.5577814 | N175: 22744.39748
B176: 173 | C176: 28281.24013 | D176: 0.04966016744 | E176: 0.01808256572 | F176: 0.01071923125 | G176: 0.02456451629 | H176: 0.004763276581 | I176: 0.01009340417 | J176: 0.01936110244 | K176: 1185.756516 | L176: 1309.225602 | M176: 123.4690859 | N176: 28281.24013
B177: 174 | C177: 25789.32569 | D177: 0.05166264532 | E177: 0.01466941725 | F177: 0.02542672507 | G177: 0.03105049716 | H177: 0.005991131833 | I177: 0.06890104899 | J177: 0.02654954834 | K177: 1171.393954 | L177: 1325.785088 | M177: 154.3911334 | N177: 25789.32569
B178: 175 | C178: 14573.29342 | D178: 0.05546772968 | E178: 0.06412677416 | F178: 0.04339747189 | G178: 0.12 | H178: 0.03229534048 | I178: 0.02739572959 | J178: 0.02408835416 | K178: 1083.988189 | L178: 1379.503384 | M178: 295.515195 | N178: 14573.29342
B179: 176 | C179: 39073.60688 | D179: 0.05799230601 | E179: 0.01973049674 | F179: 0.08371609349 | G179: 0.0117271358 | H179: 0.08140937138 | I179: 0.009045709373 | J179: 0.02433255514 | K179: 1438.262719 | L179: 1362.530645 | M179: -75.7320738 | N179: 39073.60688
B180: 177 | C180: 33285.95766 | D180: 0.05192469851 | E180: 0.02438730158 | F180: 0.04797523043 | G180: 0.03686187455 | H180: 0.007572842994 | I180: 0.008076949367 | J180: 0.07136993094 | K180: 1308.243514 | L180: 1333.637629 | M180: 25.39411434 | N180: 33285.95766
B181: 178 | C181: 28249.36514 | D181: 0.04129930036 | E181: 0.04810096486 | F181: 0.04183173782 | G181: 0.01622579389 | H181: 0.0290777451 | I181: 0.03596111813 | J181: 0.06282203471 | K181: 1233.912801 | L181: 1314.159882 | M181: 80.2470815 | N181: 28249.36514
B182: 179 | C182: 41108.23592 | D182: 0.04826089264 | E182: 0.0101418211 | F182: 0.1042670789 | G182: 0.005572782192 | H182: 0.02612007082 | I182: 0.0156508302 | J182: 0.01513551649 | K182: 1438.342682 | L182: 1328.337751 | M182: -110.0049312 | N182: 41108.23592
B183: 180 | C183: 21025.97652 | D183: 0.03956012676 | E183: 0.01072685913 | F183: 0.01178889519 | G183: 0.01479537569 | H183: 0.05422084971 | I183: 0.01334667143 | J183: 0.009015079569 | K183: 1069.44269 | L183: 1286.171842 | M183: 216.7291517 | N183: 21025.97652
B184: 181 | C184: 34960.54734 | D184: 0.03380218627 | E184: 0.01285046607 | F184: 0.02380447205 | G184: 0.02159975329 | H184: 0.03896438027 | I184: 0.02563236401 | J184: 0.03617177566 | K184: 1292.852814 | L184: 1277.488742 | M184: -15.36407215 | N184: 34960.54734
B185: 182 | C185: 54574.61014 | D185: 0.05140623749 | E185: 0.07968493466 | F185: 0.1171825195 | G185: 0.03957732358 | H185: 0.02052324484 | I185: 0.06433837015 | J185: 0.008344874895 | K185: 1751.255139 | L185: 1379.047737 | M185: -372.2074019 | N185: 54574.61014
B186: 183 | C186: 27929.32743 | D186: 0.0522021931 | E186: 0.01958291216 | F186: 0.09119903986 | G186: 0.02353651127 | H186: 0.01513655445 | I186: 0.03983764332 | J186: 0.02275558516 | K186: 1242.378105 | L186: 1344.069695 | M186: 101.6915902 | N186: 27929.32743
B187: 184 | C187: 30219.13009 | D187: 0.064669112 | E187: 0.03297957421 | F187: 0.0273516663 | G187: 0.0437159535 | H187: 0.03251504734 | I187: 0.01766539613 | J187: 0.01387435171 | K187: 1274.837384 | L187: 1368.748144 | M187: 93.91076048 | N187: 30219.13009
B188: 185 | C188: 30672.26407 | D188: 0.05086595866 | E188: 0.03546374492 | F188: 0.02388121467 | G188: 0.07919420526 | H188: 0.03489297051 | I188: 0.04859831666 | J188: 0.12 | K188: 1305.388128 | L188: 1349.969259 | M188: 44.58113163 | N188: 30672.26407
B189: 186 | C189: 52865.06124 | D189: 0.06496009943 | E189: 0.04593360848 | F189: 0.02508280484 | G189: 0.006456571875 | H189: 0.01822763442 | I189: 0.02139604636 | J189: 0.02685138022 | K189: 1643.52666 | L189: 1363.761386 | M189: -279.7652739 | N189: 52865.06124
B190: 187 | C190: 19256.18931 | D190: 0.02222075308 | E190: 0.05978611494 | F190: 0.02753997191 | G190: 0.025333247 | H190: 0.02203754107 | I190: 0.01606306742 | J190: 0.01442518644 | K190: 1073.349535 | L190: 1261.445011 | M190: 188.0954767 | N190: 19256.18931
B191: 188 | C191: 38381.60994 | D191: 0.05117251714 | E191: 0.004354382692 | F191: 0.03008284312 | G191: 0.03792417501 | H191: 0.0262637242 | I191: 0.12 | J191: 0.0452229386 | K191: 1394.457099 | L191: 1333.908137 | M191: -60.54896235 | N191: 38381.60994
B192: 189 | C192: 25208.48023 | D192: 0.0447376249 | E192: 0.01746285602 | F192: 0.03721071418 | G192: 0.1022869169 | H192: 0.006597795855 | I192: 0.00326834599 | J192: 0.05093617806 | K192: 1186.861935 | L192: 1322.073852 | M192: 135.2119176 | N192: 25208.48023
B193: 190 | C193: 28054.05632 | D193: 0.0389502955 | E193: 0.04695105087 | F193: 0.01481023398 | G193: 0.05070863238 | H193: 0.009659144429 | I193: 0.03675463565 | J193: 0.02690413468 | K193: 1216.362154 | L193: 1302.334284 | M193: 85.97213033 | N193: 28054.05632
B194: 191 | C194: 23433.53499 | D194: 0.05291153932 | E194: 0.03121388937 | F194: 0.02661740975 | G194: 0.02973043077 | H194: 0.01993139163 | I194: 0.01967615898 | J194: 0.02798070498 | K194: 1140.405341 | L194: 1331.990382 | M194: 191.5850413 | N194: 23433.53499
B195: 192 | C195: 33111.50284 | D195: 0.05594747537 | E195: 0.01588418229 | F195: 0.01110290442 | G195: 0.04355122431 | H195: 0.01940810459 | I195: 0.01529421916 | J195: 0.0194938536 | K195: 1285.121307 | L195: 1332.432169 | M195: 47.31086184 | N195: 33111.50284
B196: 193 | C196: 20551.88713 | D196: 0.05889765063 | E196: 0.08795633067 | F196: 0.07625594737 | G196: 0.0416917302 | H196: 0.1043898089 | I196: 0.01821472858 | J196: 0.0515470485 | K196: 1213.54588 | L196: 1402.553008 | M196: 189.0071281 | N196: 20551.88713
B197: 194 | C197: 64548.0877 | D197: 0.0465585288 | E197: 0.03843130553 | F197: 0.02821802345 | G197: 0.08870216832 | H197: 0.02742588818 | I197: 0.02753984062 | J197: 0.02033076874 | K197: 1829.925204 | L197: 1333.525998 | M197: -496.3992059 | N197: 64548.0877
B198: 195 | C198: 26929.77726 | D198: 0.0682457269 | E198: 0.01494498164 | F198: 0.009510242492 | G198: 0.01108619322 | H198: 0.04651073772 | I198: 0.003553077946 | J198: 0.01343246107 | K198: 1185.715839 | L198: 1360.884233 | M198: 175.1683938 | N198: 26929.77726
B199: 196 | C199: 32756.58558 | D199: 0.06504364875 | E199: 0.0171547924 | F199: 0.002189828883 | G199: 0.003714235736 | H199: 0.0329029871 | I199: 0.05345157723 | J199: 0.04421506992 | K199: 1283.929704 | L199: 1353.767876 | M199: 69.83817206 | N199: 32756.58558
B200: 197 | C200: 16383.62886 | D200: 0.05924988345 | E200: 0.01692811227 | F200: 0.01675063143 | G200: 0.004993442713 | H200: 0.02039783464 | I200: 0.01582847014 | J200: 0.0008127479727 | K200: 997.5511324 | L200: 1334.182751 | M200: 336.6316186 | N200: 16383.62886
... 803 more rows
